[Event "January 9 Late 2024"]
[Site "https://www.chess.com"]
[Date "2024.01.09"]
[Round "3"]
[White "Bortnyk, Olexandr"]
[Black "Durarbayli, Vasif"]
[Result "1-0"]
[Board "6"]
[TimeControl "180+1"]
[WhiteFideId "14120828"]
[BlackFideId "13402935"]
[WhiteElo "3111"]
[BlackElo "2864"]
[WhiteTeam "UKR"]
[BlackTeam "AZE"]
[WhiteClock "0:00:10"]
[BlackClock "0:00:00"]

1. e4 {[%clk 0:03:00]}  e5 {[%clk 0:02:58]} 2. Nf3 {[%clk 0:02:59]}  Nc6 {[%clk 0:02:58]} 3. Bb5 {[%clk 0:02:59]}  a6 {[%clk 0:02:58]} 4. Ba4 {[%clk 0:02:59]}  Nf6 {[%clk 0:02:58]} 5. Nc3 {[%clk 0:03:00]}  b5 {[%clk 0:02:56]} 6. Bb3 {[%clk 0:03:00]}  Bc5 {[%clk 0:02:56]} 7. Nd5 {[%clk 0:02:59]}  d6 {[%clk 0:02:56]} 8. c3 {[%clk 0:02:50]}  Nxd5 {[%clk 0:02:12]} 9. Bxd5 {[%clk 0:02:50]}  Bd7 {[%clk 0:02:12]} 10. d4 {[%clk 0:02:48]}  exd4 {[%clk 0:02:01]} 11. Bg5 {[%clk 0:02:46]}  f6 {[%clk 0:01:47]} 12. cxd4 {[%clk 0:02:45]}  fxg5 {[%clk 0:01:16]} 13. dxc5 {[%clk 0:02:46]}  dxc5 {[%clk 0:01:17]} 14. Rc1 {[%clk 0:02:36]}  Qe7 {[%clk 0:01:14]} 15. O-O {[%clk 0:02:20]}  g4 {[%clk 0:00:54]} 16. Nd2 {[%clk 0:02:10]}  Rd8 {[%clk 0:00:54]} 17. Re1 {[%clk 0:01:53]}  Ne5 {[%clk 0:00:50]} 18. Nb3 {[%clk 0:01:06]}  c4 {[%clk 0:00:45]} 19. Nd4 {[%clk 0:01:07]}  c6 {[%clk 0:00:41]} 20. f4 {[%clk 0:01:08]}  gxf3 {[%clk 0:00:36]} 21. Nxf3 {[%clk 0:01:08]}  Nd3 {[%clk 0:00:34]} 22. Qd2 {[%clk 0:01:00]}  Qc5+ {[%clk 0:00:18]} 23. Kh1 {[%clk 0:00:57]}  Nxe1 {[%clk 0:00:09]} 24. Rxe1 {[%clk 0:00:54]}  Be6 {[%clk 0:00:02]} 25. Ng5 {[%clk 0:00:42]}  Bxd5 {[%clk 0:00:03]} 26. exd5+ {[%clk 0:00:43]}  Kd7 {[%clk 0:00:04]} 27. dxc6+ {[%clk 0:00:31]}  Kxc6 {[%clk 0:00:05]} 28. Qa5 {[%clk 0:00:30]}  Rhe8 {[%clk 0:00:03]} 29. Ne6 {[%clk 0:00:24]}  Qb6 {[%clk 0:00:04]} 30. Nxd8+ {[%clk 0:00:24]}  Qxd8 {[%clk 0:00:05]} 31. Qxa6+ {[%clk 0:00:23]}  Kc5 {[%clk 0:00:05]} 32. Qa7+ {[%clk 0:00:20]}  Kc6 {[%clk 0:00:06]} 33. Qa6+ {[%clk 0:00:18]}  Kc5 {[%clk 0:00:06]} 34. b4+ {[%clk 0:00:19]}  cxb3 {[%clk 0:00:03]} 35. Rc1+ {[%clk 0:00:18]}  Kd4 {[%clk 0:00:03]} 36. Qxb5 {[%clk 0:00:12]}  Ke3 {[%clk 0:00:01]} 37. Qxb3+ {[%clk 0:00:11]}  Kf4 {[%clk 0:00:01]} 38. Qg3+ {[%clk 0:00:09]}  Kf5 {[%clk 0:00:01]} 39. Rf1+ {[%clk 0:00:09]}  Ke6 {[%clk 0:00:00]} 40. Qxg7 {[%clk 0:00:10]} 1-0

[Event "January 9 Late 2024"]
[Site "https://www.chess.com"]
[Date "2024.01.09"]
[Round "3"]
[White "Chan, Yi Ren Daniel"]
[Black "Aronian, Levon"]
[Result "0-1"]
[Board "7"]
[TimeControl "180+1"]
[WhiteFideId "5801583"]
[BlackFideId "13300474"]
[WhiteElo "2858"]
[BlackElo "3104"]
[WhiteTeam "SGP"]
[BlackTeam "USA"]
[WhiteClock "0:00:01"]
[BlackClock "0:00:24"]

1. e4 {[%clk 0:03:00]}  c5 {[%clk 0:02:59]} 2. Nf3 {[%clk 0:03:01]}  e6 {[%clk 0:03:00]} 3. d4 {[%clk 0:03:01]}  cxd4 {[%clk 0:03:00]} 4. Nxd4 {[%clk 0:03:02]}  Nc6 {[%clk 0:03:01]} 5. Nc3 {[%clk 0:03:02]}  Qc7 {[%clk 0:03:01]} 6. Be2 {[%clk 0:03:03]}  Nf6 {[%clk 0:03:01]} 7. Bg5 {[%clk 0:03:02]}  Bb4 {[%clk 0:02:56]} 8. Qd3 {[%clk 0:02:57]}  a6 {[%clk 0:02:50]} 9. O-O {[%clk 0:02:51]}  Nxd4 {[%clk 0:02:38]} 10. Qxd4 {[%clk 0:02:50]}  Bc5 {[%clk 0:02:38]} 11. Qd3 {[%clk 0:02:50]}  b5 {[%clk 0:02:38]} 12. Rad1 {[%clk 0:02:31]}  Rb8 {[%clk 0:02:25]} 13. Rfe1 {[%clk 0:01:52]}  Rb6 {[%clk 0:01:58]} 14. Bxf6 {[%clk 0:01:40]}  gxf6 {[%clk 0:01:58]} 15. Qf3 {[%clk 0:01:33]}  Qe5 {[%clk 0:01:50]} 16. Bd3 {[%clk 0:01:14]}  Kf8 {[%clk 0:01:44]} 17. a3 {[%clk 0:01:03]}  h5 {[%clk 0:01:42]} 18. Bf1 {[%clk 0:00:54]}  h4 {[%clk 0:01:39]} 19. b4 {[%clk 0:00:55]}  Be7 {[%clk 0:01:37]} 20. Ne2 {[%clk 0:00:52]}  Rd6 {[%clk 0:01:33]} 21. Nf4 {[%clk 0:00:48]}  Bb7 {[%clk 0:01:32]} 22. Nd3 {[%clk 0:00:48]}  Qg5 {[%clk 0:01:29]} 23. Qh3 {[%clk 0:00:39]}  Rd4 {[%clk 0:01:25]} 24. f4 {[%clk 0:00:37]}  Qg6 {[%clk 0:01:19]} 25. Nf2 {[%clk 0:00:27]}  Rxd1 {[%clk 0:01:14]} 26. Rxd1 {[%clk 0:00:28]}  Bc6 {[%clk 0:01:14]} 27. Qe3 {[%clk 0:00:24]}  Kg7 {[%clk 0:01:06]} 28. Bd3 {[%clk 0:00:24]}  Bd8 {[%clk 0:01:01]} 29. Be2 {[%clk 0:00:22]}  Bc7 {[%clk 0:00:59]} 30. Bf3 {[%clk 0:00:22]}  e5 {[%clk 0:00:56]} 31. f5 {[%clk 0:00:16]}  Qg5 {[%clk 0:00:56]} 32. Qe2 {[%clk 0:00:17]}  Bb6 {[%clk 0:00:56]} 33. Kf1 {[%clk 0:00:16]}  a5 {[%clk 0:00:51]} 34. Nh3 {[%clk 0:00:15]}  Qh6 {[%clk 0:00:50]} 35. c3 {[%clk 0:00:14]}  Ra8 {[%clk 0:00:49]} 36. c4 {[%clk 0:00:10]}  bxc4 {[%clk 0:00:47]} 37. Qxc4 {[%clk 0:00:10]}  axb4 {[%clk 0:00:44]} 38. axb4 {[%clk 0:00:11]}  Ra4 {[%clk 0:00:38]} 39. Be2 {[%clk 0:00:04]}  Qe3 {[%clk 0:00:35]} 40. Qd3 {[%clk 0:00:02]}  Rxb4 {[%clk 0:00:31]} 41. Qxe3 {[%clk 0:00:02]}  Bxe3 {[%clk 0:00:31]} 42. Bd3 {[%clk 0:00:03]}  Rb2 {[%clk 0:00:26]} 43. g3 {[%clk 0:00:03]}  Rxh2 {[%clk 0:00:25]} 44. Ng1 {[%clk 0:00:03]}  hxg3 {[%clk 0:00:24]} 45. Nf3 {[%clk 0:00:01]}  Rf2+ {[%clk 0:00:24]} 0-1

[Event "January 9 Late 2024"]
[Site "https://www.chess.com"]
[Date "2024.01.09"]
[Round "3"]
[White "Klukin, Kirill"]
[Black "Tabatabaei, M. Amin"]
[Result "0-1"]
[Board "9"]
[TimeControl "180+1"]
[WhiteFideId "24199273"]
[BlackFideId "12521213"]
[WhiteElo "2850"]
[BlackElo "3089"]
[WhiteTeam "RUS"]
[BlackTeam "IRI"]
[WhiteClock "0:00:07"]
[BlackClock "0:00:16"]

1. d4 {[%clk 0:02:59]}  d5 {[%clk 0:03:00]} 2. Nf3 {[%clk 0:02:59]}  Nf6 {[%clk 0:02:59]} 3. e3 {[%clk 0:02:59]}  c5 {[%clk 0:02:59]} 4. Bd3 {[%clk 0:02:59]}  Nc6 {[%clk 0:02:57]} 5. b3 {[%clk 0:02:58]}  cxd4 {[%clk 0:02:56]} 6. exd4 {[%clk 0:02:59]}  Bg4 {[%clk 0:02:56]} 7. Bb2 {[%clk 0:03:00]}  e6 {[%clk 0:02:56]} 8. Nbd2 {[%clk 0:03:00]}  Bd6 {[%clk 0:02:56]} 9. h3 {[%clk 0:03:00]}  Bh5 {[%clk 0:02:56]} 10. a3 {[%clk 0:03:01]}  O-O {[%clk 0:02:55]} 11. Qe2 {[%clk 0:03:01]}  Rc8 {[%clk 0:02:53]} 12. O-O {[%clk 0:02:59]}  a6 {[%clk 0:02:51]} 13. g4 {[%clk 0:02:52]}  Bg6 {[%clk 0:02:51]} 14. Ne5 {[%clk 0:02:48]}  Bxd3 {[%clk 0:02:49]} 15. cxd3 {[%clk 0:02:48]}  Qb6 {[%clk 0:02:37]} 16. g5 {[%clk 0:02:48]}  Nxd4 {[%clk 0:02:36]} 17. Bxd4 {[%clk 0:02:46]}  Qxd4 {[%clk 0:02:37]} 18. Ndf3 {[%clk 0:02:43]}  Qf4 {[%clk 0:02:33]} 19. gxf6 {[%clk 0:02:41]}  gxf6 {[%clk 0:02:34]} 20. Ng4 {[%clk 0:02:27]}  f5 {[%clk 0:02:19]} 21. Ngh2 {[%clk 0:01:47]}  Kh8 {[%clk 0:02:19]} 22. Kh1 {[%clk 0:01:47]}  Rg8 {[%clk 0:02:12]} 23. Rg1 {[%clk 0:01:46]}  Rg6 {[%clk 0:02:12]} 24. d4 {[%clk 0:01:42]}  Rc3 {[%clk 0:02:06]} 25. Rad1 {[%clk 0:00:59]}  Rxb3 {[%clk 0:02:01]} 26. Rd3 {[%clk 0:00:59]}  Rxa3 {[%clk 0:01:30]} 27. Rxa3 {[%clk 0:00:57]}  Bxa3 {[%clk 0:01:31]} 28. Ne5 {[%clk 0:00:43]}  Qe4+ {[%clk 0:00:41]} 29. Qxe4 {[%clk 0:00:38]}  Rxg1+ {[%clk 0:00:41]} 30. Kxg1 {[%clk 0:00:38]}  fxe4 {[%clk 0:00:41]} 31. Nxf7+ {[%clk 0:00:34]}  Kg8 {[%clk 0:00:39]} 32. Nd8 {[%clk 0:00:35]}  b5 {[%clk 0:00:40]} 33. Nxe6 {[%clk 0:00:27]}  Bd6 {[%clk 0:00:30]} 34. Nf1 {[%clk 0:00:25]}  Kf7 {[%clk 0:00:27]} 35. Nd8+ {[%clk 0:00:17]}  Ke7 {[%clk 0:00:24]} 36. Nc6+ {[%clk 0:00:18]}  Kd7 {[%clk 0:00:24]} 37. Na5 {[%clk 0:00:19]}  Bc7 {[%clk 0:00:21]} 38. Nb3 {[%clk 0:00:19]}  a5 {[%clk 0:00:21]} 39. Ne3 {[%clk 0:00:19]}  Kc6 {[%clk 0:00:22]} 40. Kf1 {[%clk 0:00:19]}  a4 {[%clk 0:00:22]} 41. Nd2 {[%clk 0:00:08]}  b4 {[%clk 0:00:22]} 42. Ke2 {[%clk 0:00:08]}  Bb6 {[%clk 0:00:18]} 43. Nf5 {[%clk 0:00:08]}  b3 {[%clk 0:00:17]} 44. Nb1 {[%clk 0:00:08]}  Ba5 {[%clk 0:00:16]} 45. Kd1 {[%clk 0:00:09]}  Bb4 {[%clk 0:00:16]} 46. Ne7+ {[%clk 0:00:07]}  Bxe7 {[%clk 0:00:16]} 0-1

[Event "January 9 Late 2024"]
[Site "https://www.chess.com"]
[Date "2024.01.09"]
[Round "3"]
[White "Makarian, Rudik"]
[Black "Zubritskiy, Artyom"]
[Result "1-0"]
[Board "10"]
[TimeControl "180+1"]
[WhiteFideId "44105681"]
[BlackFideId "4181247"]
[WhiteElo "3086"]
[BlackElo "2850"]
[WhiteTeam "FID"]
[BlackTeam "FID"]
[WhiteClock "0:01:11"]
[BlackClock "0:00:00"]

1. d4 {[%clk 0:03:00]}  Nf6 {[%clk 0:02:59]} 2. c4 {[%clk 0:03:00]}  e5 {[%clk 0:02:59]} 3. dxe5 {[%clk 0:03:00]}  Ng4 {[%clk 0:03:00]} 4. e4 {[%clk 0:03:01]}  Nxe5 {[%clk 0:02:59]} 5. f4 {[%clk 0:03:01]}  Nec6 {[%clk 0:02:59]} 6. Nc3 {[%clk 0:03:00]}  Bc5 {[%clk 0:02:56]} 7. Nf3 {[%clk 0:02:57]}  d6 {[%clk 0:02:54]} 8. Na4 {[%clk 0:02:57]}  Bb4+ {[%clk 0:02:32]} 9. Kf2 {[%clk 0:02:57]}  O-O {[%clk 0:02:19]} 10. a3 {[%clk 0:02:56]}  Ba5 {[%clk 0:02:20]} 11. b4 {[%clk 0:02:56]}  Bb6+ {[%clk 0:02:20]} 12. Nxb6 {[%clk 0:02:56]}  axb6 {[%clk 0:02:20]} 13. Bb2 {[%clk 0:02:56]}  Nd7 {[%clk 0:02:03]} 14. Bd3 {[%clk 0:02:55]}  Nf6 {[%clk 0:02:00]} 15. Re1 {[%clk 0:02:55]}  Re8 {[%clk 0:01:56]} 16. h3 {[%clk 0:02:53]}  h6 {[%clk 0:01:31]} 17. Kg1 {[%clk 0:02:53]}  Bd7 {[%clk 0:01:24]} 18. Qd2 {[%clk 0:02:53]}  Qe7 {[%clk 0:01:19]} 19. Re2 {[%clk 0:02:53]}  Qf8 {[%clk 0:01:13]} 20. Rae1 {[%clk 0:02:49]}  Nh7 {[%clk 0:00:55]} 21. Bc2 {[%clk 0:02:41]}  Ne7 {[%clk 0:00:41]} 22. e5 {[%clk 0:02:19]}  Bf5 {[%clk 0:00:37]} 23. exd6 {[%clk 0:02:18]}  cxd6 {[%clk 0:00:36]} 24. Rxe7 {[%clk 0:02:13]}  Rxe7 {[%clk 0:00:36]} 25. Bxf5 {[%clk 0:02:11]}  Rae8 {[%clk 0:00:33]} 26. Rxe7 {[%clk 0:02:10]}  Qxe7 {[%clk 0:00:34]} 27. Kh2 {[%clk 0:02:03]}  Nf6 {[%clk 0:00:34]} 28. Qd4 {[%clk 0:01:53]}  Qe3 {[%clk 0:00:31]} 29. a4 {[%clk 0:01:43]}  Qb3 {[%clk 0:00:26]} 30. Nd2 {[%clk 0:01:30]}  Qxb4 {[%clk 0:00:22]} 31. Ne4 {[%clk 0:01:30]}  Nh5 {[%clk 0:00:10]} 32. Bg4 {[%clk 0:01:27]}  Rxe4 {[%clk 0:00:08]} 33. Qxe4 {[%clk 0:01:26]}  Qxb2 {[%clk 0:00:09]} 34. Qe8+ {[%clk 0:01:11]}  Kh7 {[%clk 0:00:09]} 35. Bf5+ {[%clk 0:01:11]}  g6 {[%clk 0:00:00]} 36. Qxf7+ {[%clk 0:01:11]} 1-0

[Event "January 9 Late 2024"]
[Site "https://www.chess.com"]
[Date "2024.01.09"]
[Round "3"]
[White "Schroeder, Jan-Christian"]
[Black "Bluebaum, Matthias"]
[Result "0-1"]
[Board "11"]
[TimeControl "180+1"]
[WhiteFideId "24662259"]
[BlackFideId "24651516"]
[WhiteElo "2846"]
[BlackElo "3078"]
[WhiteTeam "GER"]
[BlackTeam "GER"]
[WhiteClock "0:01:15"]
[BlackClock "0:01:58"]

1. e4 {[%clk 0:03:00]}  e6 {[%clk 0:02:59]} 2. d4 {[%clk 0:03:00]}  d5 {[%clk 0:03:00]} 3. e5 {[%clk 0:03:01]}  c5 {[%clk 0:03:00]} 4. c3 {[%clk 0:03:02]}  Nc6 {[%clk 0:03:01]} 5. Nf3 {[%clk 0:03:02]}  Nge7 {[%clk 0:03:02]} 6. Bd3 {[%clk 0:03:01]}  cxd4 {[%clk 0:03:02]} 7. cxd4 {[%clk 0:03:01]}  Nf5 {[%clk 0:03:02]} 8. Bxf5 {[%clk 0:03:01]}  exf5 {[%clk 0:03:03]} 9. Nc3 {[%clk 0:03:02]}  Be7 {[%clk 0:03:03]} 10. h4 {[%clk 0:03:00]}  O-O {[%clk 0:03:01]} 11. Bg5 {[%clk 0:03:00]}  f6 {[%clk 0:03:01]} 12. exf6 {[%clk 0:02:58]}  Bxf6 {[%clk 0:03:02]} 13. O-O {[%clk 0:02:58]}  Bxg5 {[%clk 0:02:59]} 14. hxg5 {[%clk 0:02:52]}  f4 {[%clk 0:02:59]} 15. Qb3 {[%clk 0:02:53]}  Bg4 {[%clk 0:02:43]} 16. Qxb7 {[%clk 0:02:43]}  Bxf3 {[%clk 0:02:28]} 17. Qxc6 {[%clk 0:02:30]}  Qxg5 {[%clk 0:02:28]} 18. Qe6+ {[%clk 0:02:30]}  Kh8 {[%clk 0:02:28]} 19. Qh3 {[%clk 0:02:30]}  Bg4 {[%clk 0:02:28]} 20. Qd3 {[%clk 0:02:00]}  f3 {[%clk 0:02:23]} 21. Qe3 {[%clk 0:01:45]}  Qg6 {[%clk 0:02:11]} 22. Nxd5 {[%clk 0:01:28]}  fxg2 {[%clk 0:02:05]} 23. Rfe1 {[%clk 0:01:15]}  Qh5 {[%clk 0:01:58]} 0-1

[Event "January 9 Late 2024"]
[Site "https://www.chess.com"]
[Date "2024.01.09"]
[Round "3"]
[White "Oparin, Grigoriy"]
[Black "Pichot, Alan"]
[Result "1-0"]
[Board "12"]
[TimeControl "180+1"]
[WhiteFideId "24125890"]
[BlackFideId "110973"]
[WhiteElo "3060"]
[BlackElo "2845"]
[WhiteTeam "USA"]
[BlackTeam "ESP"]
[WhiteClock "0:00:09"]
[BlackClock "0:00:00"]

1. Nf3 {[%clk 0:03:00]}  Nf6 {[%clk 0:02:57]} 2. c4 {[%clk 0:03:01]}  e6 {[%clk 0:02:57]} 3. g3 {[%clk 0:02:59]}  d5 {[%clk 0:02:56]} 4. Bg2 {[%clk 0:03:00]}  d4 {[%clk 0:02:56]} 5. O-O {[%clk 0:02:59]}  Nc6 {[%clk 0:02:56]} 6. e3 {[%clk 0:02:59]}  e5 {[%clk 0:02:54]} 7. exd4 {[%clk 0:02:58]}  exd4 {[%clk 0:02:52]} 8. Re1+ {[%clk 0:02:49]}  Be7 {[%clk 0:02:52]} 9. d3 {[%clk 0:02:31]}  O-O {[%clk 0:02:52]} 10. Bg5 {[%clk 0:02:32]}  Bf5 {[%clk 0:02:45]} 11. Na3 {[%clk 0:01:42]}  h6 {[%clk 0:02:44]} 12. Bxf6 {[%clk 0:01:34]}  Bxf6 {[%clk 0:02:45]} 13. Nc2 {[%clk 0:01:33]}  a5 {[%clk 0:02:39]} 14. Qd2 {[%clk 0:01:31]}  Qd6 {[%clk 0:02:33]} 15. a3 {[%clk 0:01:29]}  a4 {[%clk 0:02:25]} 16. Re2 {[%clk 0:01:21]}  Na5 {[%clk 0:02:20]} 17. Rae1 {[%clk 0:01:22]}  Nb3 {[%clk 0:02:18]} 18. Qd1 {[%clk 0:01:22]}  c6 {[%clk 0:02:05]} 19. h3 {[%clk 0:01:15]}  Bg6 {[%clk 0:02:01]} 20. Ne5 {[%clk 0:01:12]}  Bh7 {[%clk 0:01:47]} 21. f4 {[%clk 0:01:11]}  Rae8 {[%clk 0:01:36]} 22. Nb4 {[%clk 0:01:12]}  Re7 {[%clk 0:01:30]} 23. Ng4 {[%clk 0:00:45]}  Rfe8 {[%clk 0:01:29]} 24. Rxe7 {[%clk 0:00:43]}  Rxe7 {[%clk 0:01:29]} 25. Rxe7 {[%clk 0:00:41]}  Bxe7 {[%clk 0:01:26]} 26. Qe2 {[%clk 0:00:29]}  Nc5 {[%clk 0:01:21]} 27. Nf2 {[%clk 0:00:27]}  Qd8 {[%clk 0:01:07]} 28. Ne4 {[%clk 0:00:23]}  Nb3 {[%clk 0:01:04]} 29. Nc2 {[%clk 0:00:20]}  Kf8 {[%clk 0:01:01]} 30. Nf2 {[%clk 0:00:19]}  Nc5 {[%clk 0:00:33]} 31. h4 {[%clk 0:00:19]}  Nb3 {[%clk 0:00:27]} 32. Be4 {[%clk 0:00:17]}  Bg8 {[%clk 0:00:15]} 33. Kg2 {[%clk 0:00:17]}  Qd7 {[%clk 0:00:15]} 34. Bf3 {[%clk 0:00:17]}  f5 {[%clk 0:00:14]} 35. h5 {[%clk 0:00:16]}  Bf6 {[%clk 0:00:14]} 36. Nb4 {[%clk 0:00:15]}  Bf7 {[%clk 0:00:15]} 37. Nc2 {[%clk 0:00:13]}  Qe8 {[%clk 0:00:13]} 38. Qxe8+ {[%clk 0:00:12]}  Kxe8 {[%clk 0:00:14]} 39. Kf1 {[%clk 0:00:12]}  Ke7 {[%clk 0:00:14]} 40. Ke2 {[%clk 0:00:13]}  Kd6 {[%clk 0:00:14]} 41. Kd1 {[%clk 0:00:13]}  Kc5 {[%clk 0:00:13]} 42. Ne1 {[%clk 0:00:13]}  b5 {[%clk 0:00:13]} 43. cxb5 {[%clk 0:00:13]}  cxb5 {[%clk 0:00:13]} 44. Nc2 {[%clk 0:00:13]}  Be7 {[%clk 0:00:10]} 45. Nb4 {[%clk 0:00:13]}  Kd6 {[%clk 0:00:10]} 46. Nc6 {[%clk 0:00:12]}  Bf6 {[%clk 0:00:11]} 47. Kc2 {[%clk 0:00:12]}  Na1+ {[%clk 0:00:09]} 48. Kd1 {[%clk 0:00:11]}  Nb3 {[%clk 0:00:10]} 49. Nb4 {[%clk 0:00:11]}  Nc5 {[%clk 0:00:10]} 50. Nh3 {[%clk 0:00:10]}  g5 {[%clk 0:00:06]} 51. hxg6 {[%clk 0:00:10]}  Bxg6 {[%clk 0:00:07]} 52. Ng1 {[%clk 0:00:10]}  h5 {[%clk 0:00:06]} 53. Ne2 {[%clk 0:00:08]}  Bf7 {[%clk 0:00:05]} 54. Kd2 {[%clk 0:00:07]}  Nb3+ {[%clk 0:00:06]} 55. Ke1 {[%clk 0:00:08]}  h4 {[%clk 0:00:06]} 56. gxh4 {[%clk 0:00:07]}  Bxh4+ {[%clk 0:00:07]} 57. Kd1 {[%clk 0:00:08]}  Bf2 {[%clk 0:00:07]} 58. Nc2 {[%clk 0:00:08]}  Bd5 {[%clk 0:00:04]} 59. Bxd5 {[%clk 0:00:08]}  Kxd5 {[%clk 0:00:05]} 60. Nb4+ {[%clk 0:00:07]}  Kc5 {[%clk 0:00:05]} 61. Na6+ {[%clk 0:00:07]}  Kd6 {[%clk 0:00:05]} 62. Nb4 {[%clk 0:00:08]}  Be3 {[%clk 0:00:05]} 63. Ke1 {[%clk 0:00:08]}  Bd2+ {[%clk 0:00:03]} 64. Kd1 {[%clk 0:00:08]}  Kc5 {[%clk 0:00:03]} 65. Na6+ {[%clk 0:00:07]}  Kb6 {[%clk 0:00:03]} 66. Nb4 {[%clk 0:00:08]}  Kc5 {[%clk 0:00:02]} 67. Na6+ {[%clk 0:00:09]}  Kc6 {[%clk 0:00:03]} 68. Nb4+ {[%clk 0:00:09]}  Kd6 {[%clk 0:00:03]} 69. Na6 {[%clk 0:00:09]}  Be3 {[%clk 0:00:04]} 70. Nb4 {[%clk 0:00:09]}  Kc5 {[%clk 0:00:04]} 71. Na6+ {[%clk 0:00:09]}  Kb6 {[%clk 0:00:04]} 72. Nb4 {[%clk 0:00:10]}  Kc5 {[%clk 0:00:04]} 73. Nc2 {[%clk 0:00:10]}  Bf2 {[%clk 0:00:04]} 74. Nb4 {[%clk 0:00:10]}  Bh4 {[%clk 0:00:04]} 75. Ng1 {[%clk 0:00:09]}  Bg3 {[%clk 0:00:03]} 76. Nh3 {[%clk 0:00:09]}  Bh4 {[%clk 0:00:02]} 77. Ke2 {[%clk 0:00:09]}  Bf6 {[%clk 0:00:02]} 78. Ng5 {[%clk 0:00:09]}  Kd6 {[%clk 0:00:02]} 79. Nf3 {[%clk 0:00:09]}  Kc5 {[%clk 0:00:02]} 80. Ng5 {[%clk 0:00:10]}  Kd6 {[%clk 0:00:03]} 81. Nf7+ {[%clk 0:00:10]}  Kc5 {[%clk 0:00:03]} 82. Nh6 {[%clk 0:00:10]}  Bg7 {[%clk 0:00:01]} 83. Nxf5 {[%clk 0:00:10]}  Bf6 {[%clk 0:00:02]} 84. Ng3 {[%clk 0:00:11]}  Bh4 {[%clk 0:00:01]} 85. Ne4+ {[%clk 0:00:11]}  Kb6 {[%clk 0:00:02]} 86. f5 {[%clk 0:00:12]}  Kc7 {[%clk 0:00:02]} 87. Kf3 {[%clk 0:00:10]}  Kd7 {[%clk 0:00:02]} 88. Kg4 {[%clk 0:00:11]}  Be1 {[%clk 0:00:02]} 89. Nd5 {[%clk 0:00:09]}  Nc1 {[%clk 0:00:02]} 90. f6 {[%clk 0:00:08]}  Ke6 {[%clk 0:00:02]} 91. Nf4+ {[%clk 0:00:08]}  Kf7 {[%clk 0:00:00]} 92. Kf5 {[%clk 0:00:09]} 1-0

[Event "January 9 Late 2024"]
[Site "https://www.chess.com"]
[Date "2024.01.09"]
[Round "3"]
[White "Remizov, Yaroslav"]
[Black "Keymer, Vincent"]
[Result "1-0"]
[Board "13"]
[TimeControl "180+1"]
[WhiteFideId "34134015"]
[BlackFideId "12940690"]
[WhiteElo "2840"]
[BlackElo "3060"]
[WhiteTeam "RUS"]
[BlackTeam "GER"]
[WhiteClock "0:00:19"]
[BlackClock "0:00:08"]

1. e4 {[%clk 0:03:00]}  c6 {[%clk 0:03:00]} 2. d4 {[%clk 0:03:00]}  d5 {[%clk 0:03:00]} 3. Nc3 {[%clk 0:02:59]}  h6 {[%clk 0:02:57]} 4. Be3 {[%clk 0:02:52]}  dxe4 {[%clk 0:02:55]} 5. Nxe4 {[%clk 0:02:53]}  Bf5 {[%clk 0:02:56]} 6. Bd3 {[%clk 0:02:52]}  e6 {[%clk 0:02:52]} 7. c3 {[%clk 0:02:38]}  Nf6 {[%clk 0:02:45]} 8. Nxf6+ {[%clk 0:02:33]}  Qxf6 {[%clk 0:02:46]} 9. Bxf5 {[%clk 0:02:21]}  Qxf5 {[%clk 0:02:47]} 10. Qb3 {[%clk 0:02:22]}  b6 {[%clk 0:02:40]} 11. Ne2 {[%clk 0:02:14]}  Nd7 {[%clk 0:02:39]} 12. a4 {[%clk 0:02:12]}  Be7 {[%clk 0:02:35]} 13. a5 {[%clk 0:02:09]}  b5 {[%clk 0:02:34]} 14. O-O {[%clk 0:02:04]}  a6 {[%clk 0:02:30]} 15. c4 {[%clk 0:02:00]}  O-O {[%clk 0:02:28]} 16. Rfc1 {[%clk 0:01:58]}  Rfc8 {[%clk 0:02:26]} 17. Ng3 {[%clk 0:01:54]}  Qg6 {[%clk 0:02:24]} 18. cxb5 {[%clk 0:01:39]}  cxb5 {[%clk 0:02:24]} 19. d5 {[%clk 0:01:32]}  e5 {[%clk 0:02:24]} 20. d6 {[%clk 0:01:17]}  Bxd6 {[%clk 0:02:05]} 21. Rxc8+ {[%clk 0:01:17]}  Rxc8 {[%clk 0:02:04]} 22. Qd5 {[%clk 0:01:18]}  Nc5 {[%clk 0:01:18]} 23. Rc1 {[%clk 0:01:05]}  b4 {[%clk 0:00:23]} 24. Bxc5 {[%clk 0:01:01]}  Bxc5 {[%clk 0:00:24]} 25. Rxc5 {[%clk 0:01:01]}  Qb1+ {[%clk 0:00:24]} 26. Nf1 {[%clk 0:01:01]}  Rxc5 {[%clk 0:00:25]} 27. Qxc5 {[%clk 0:01:02]}  Qxb2 {[%clk 0:00:26]} 28. Qc8+ {[%clk 0:01:02]}  Kh7 {[%clk 0:00:25]} 29. Qxa6 {[%clk 0:01:02]}  Qc2 {[%clk 0:00:20]} 30. Qb5 {[%clk 0:00:47]}  b3 {[%clk 0:00:20]} 31. a6 {[%clk 0:00:48]}  b2 {[%clk 0:00:21]} 32. a7 {[%clk 0:00:48]}  b1=Q {[%clk 0:00:20]} 33. Qxb1 {[%clk 0:00:49]}  Qxb1 {[%clk 0:00:21]} 34. a8=Q {[%clk 0:00:49]}  f6 {[%clk 0:00:16]} 35. h3 {[%clk 0:00:47]}  Qc1 {[%clk 0:00:12]} 36. Qa6 {[%clk 0:00:46]}  Qb1 {[%clk 0:00:12]} 37. Qe2 {[%clk 0:00:46]}  Kg8 {[%clk 0:00:10]} 38. Kh2 {[%clk 0:00:46]}  Qf5 {[%clk 0:00:10]} 39. Ng3 {[%clk 0:00:46]}  Qf4 {[%clk 0:00:10]} 40. Qc2 {[%clk 0:00:39]}  h5 {[%clk 0:00:06]} 41. Qf5 {[%clk 0:00:24]}  h4 {[%clk 0:00:04]} 42. Qxf4 {[%clk 0:00:24]}  exf4 {[%clk 0:00:05]} 43. Nh5 {[%clk 0:00:16]}  f3 {[%clk 0:00:06]} 44. gxf3 {[%clk 0:00:16]}  Kf7 {[%clk 0:00:06]} 45. Nf4 {[%clk 0:00:16]}  g5 {[%clk 0:00:05]} 46. Nd3 {[%clk 0:00:14]}  Ke6 {[%clk 0:00:06]} 47. Kg2 {[%clk 0:00:14]}  Kd5 {[%clk 0:00:06]} 48. Kf1 {[%clk 0:00:15]}  Kd4 {[%clk 0:00:07]} 49. Ke2 {[%clk 0:00:16]}  Kd5 {[%clk 0:00:07]} 50. Ke3 {[%clk 0:00:16]}  Ke6 {[%clk 0:00:08]} 51. f4 {[%clk 0:00:16]}  Kf5 {[%clk 0:00:09]} 52. fxg5 {[%clk 0:00:16]}  fxg5 {[%clk 0:00:09]} 53. Kf3 {[%clk 0:00:17]}  Kf6 {[%clk 0:00:09]} 54. Kg4 {[%clk 0:00:17]}  Kg6 {[%clk 0:00:10]} 55. Ne5+ {[%clk 0:00:18]}  Kf6 {[%clk 0:00:08]} 56. Nf3 {[%clk 0:00:19]} 1-0